{"text_format":"3","workbook":"xlsx","n_sheets":5,"sheets":["Hinweise","Deckblatt","Maßnahmeblatt","Maßnahmebeschreibung","Vertretungsberechtigung"],"not_rendered":{"defined_names":5,"comments":3},"read":"whole","date_system":"1900"}

{"sheet":"Hinweise","index":0,"n_rows":21,"n_cols":8,"rows_kept":21,"merged":[[2,0,2,7],[4,0,4,7],[5,0,5,7],[6,0,6,7],[7,0,7,7],[8,0,8,7],[9,0,9,7],[10,0,10,7],[11,0,11,7],[12,0,12,7],[13,0,13,7],[14,0,14,7],[15,0,15,7],[16,0,16,7],[17,0,17,7],[18,0,18,7],[19,0,19,7],[20,0,20,7]]}
["Landeshauptstadt Dresden - Jugendamt",{"$nulls":6},"Förderung von Trägern der freien Jugendhilfe"]
[]
["Hinweise zum Fördermittelantrag - Internationale Jugendbegegnungen"]
[]
["Aus Gründen der Lesbarkeit bedient sich dieses Formular der männlichen Schreibweise, schließt die weibliche Form der Begriffe jedoch selbstverständlich mit ein."]
["Rechtliche Grundlage der Förderung von Trägern der freien Jugendhilfe ist der § 74 SGB VIII und die diesen \n§ ausfüllenden Richtlinien und Vorschiften der Landeshauptstadt Dresden. Ein Rechtsanspruch auf die Gewährung einer Zuwendung ergibt sich daraus nicht."]
["Es können nur Angebote in der Landeshauptstadt Dresden für Dresdner Kinder, Jugendliche und junge Erwachsene, die durch in Dresden ansässige Träger der freien Jugendhilfe erbracht werden, gefördert werden. "]
["Angebote anderer Träger der freien Jugendhilfe, die überregional oder in anderen Gebietskörperschaften tätig sind, können gefördert werden, wenn sie den Bedarf von Dresdner jungen Menschen erfüllen und als Träger der freien Jugendhilfe nach § 75 SGB VIII anerkannt sind."]
["Die Förderung muss form- und fristgerecht beantragt werden. Der Antrag muss vollständig sein. Er ist in Papierform einzureichen. Antragsschluss ist der 31. August des Vorjahres des Antragsjahres."]
["Fördervoraussetzungen und Zuwendungshöhen für internationale Jugendbewegungen gemäß der aktuell geltenden Verwaltungsvorschrift zur Umsetzung der Förderrichtlinie Jugendhilfe:"]
["Internationale Jugendbegegnungen sind außerschulische Maßnahmen der internationalen Jugendarbeit, \ndie mit ausländischen Partnern durchgeführt werden. Über die gesamte Dauer der Maßnahme ist mit mindestens einem ausländischen Partner ein gemeinsames Programm  durchzuführen. Es soll ein ausgewogenes Verhältnis zwischen Dresdner und ausländischen Jugendlichen gegeben sein. \nDie Begegnung soll mindestens 5 und maximal 21 Tage andauern; An- und Abreise gelten als ein Maßnahmetag. Begegnungen mit Partnern aus Tschechien und Polen im grenznahen Raum sind auch \nab 2 Übernachtungen zuwendungsfähig. Es sollen mindestens 16 junge Menschen an der Begegnung teilnehmen. Das Mindestalter beträgt in der Regel 12 Jahre. "]
["Fördersätze:\n- Begegnung im Inland ohne Übernachtung 5,00 EUR je Tag und Dresdner Teilnehmer\n- Begegnung im Inland mit Übernachtung 10,00 EUR je Tag und Dresdner Teilnehmer/15,00 EUR je Tag und ausländischem Teilnehmer\n- Begegnung im Ausland 20,00 EUR je Tag und Dresdner Teilnehmer\n- jedoch max. 60% der zuwendungsfähigen Gesamtausgaben\n- An- und Abreisetag = 1 Tag\n- Betreuerkosten: Jugendgruppenbetreuer sind in Höhe von 12,5% der Teilnehmerzuwendung förderfähig"]
["Der Antrag besteht aus mehreren Tabellenblättern bzw. Seiten: Deckblatt, Vertretungsberechtigung, Daten/Ausgaben/Finanzierung je Maßnahme 1 Blatt, Maßnahmebeschreibung je Maßnahme 1 Blatt."]
["Die im Antrag dargestellten Ausgaben müssen im direkten Zusammenhang mit dem Vorhaben, der internationalen Jugendbegegnung, stehen. Ausgaben des Antragstellers, die ihm auch anfallen würden, wenn er diese hier zur Beantragung stehende Leistung nicht erbringt, sind nicht zuwendungsfähig."]
["Ausfüllhinweise:"]
["Beginnen Sie mit dem Ausfüllen des Formulars beim Deckblatt."]
["Das Antragsformular enthält Zellverknüpfungen und selbstrechnende Felder. Fehlermeldungen sind erst nach dem vollständigen Ausfüllen der vorgesehenen Felder zu beachten."]
["Zahlen sind fortlaufend und ohne Freizeichen, Punkte oder Währung einzugeben."]
["Tabellenblätter, die nicht für die Antragstellung benötigt werden, sind nicht zu löschen; es sind nur die Tabellenblätter auszudrucken, die ausgefüllt wurden."]
["Druck: Auf Grund verschiedener PC-Einstellungen kann es vorkommen, dass an Ihrem PC für ein hier angelegtes Tabellenblatt 2 Seiten ausgedruckt werden. Bitte richten Sie die Seite neu ein (Menü: \"Ansicht\" -> \"Seitenumbruchvorschau\" -> mit der linken Maustaste die blauen Balken so verschieben, dass nur noch eine Seite angezeigt wird -> Menü: \"Ansicht\" -> \"Normal\"."]
["Bei Fragen zum Ausfüllen des Formulars wenden Sie sich an Frau Schuster, Tel. 4884671, \nE-Mail: nschuster@dresden.de."]

{"sheet":"Deckblatt","index":1,"n_rows":59,"n_cols":19,"rows_kept":59,"merged":[[1,11,1,18],[2,0,3,9],[2,11,4,18],[4,0,5,9],[6,0,7,9],[6,11,9,18],[8,0,9,9],[18,11,18,18],[20,17,20,18],[21,0,21,18],[23,0,23,7],[23,8,23,18],[25,8,25,18],[27,8,27,12],[27,13,27,14],[29,0,31,7],[29,13,31,18],[30,8,31,12],[32,0,32,11],[32,13,32,18],[33,0,33,11],[33,13,33,18],[34,0,34,11],[34,13,34,18],[35,0,35,11],[35,13,35,18],[36,0,36,11],[36,13,36,18],[40,0,40,3],[40,4,40,6],[40,7,40,9],[40,10,40,12],[40,13,40,15],[40,16,40,18],[56,0,56,5],[56,7,56,12],[56,14,56,18]]}
["Landeshauptstadt Dresden - Jugendamt",{"$nulls":17},"Förderung von Trägern der freien Jugendhilfe - IB"]
["Antragsteller:",{"$nulls":10},"Aktenzeichen (sofern bekannt)"]
[]
[]
[]
[{"$nulls":11},"Angebotsbezeichnung:"]
[{"$nulls":11},"Internationale Jugendbegegnung"]
[]
[]
[]
[]
["Antrags- und Bewilligungsbehörde:                                                                                                                                                                                                                                                                                    ",{"$nulls":10},"Sitz:"]
["Landeshauptstadt Dresden",{"$nulls":10},"Dr.-Külz-Ring 19, 01067 Dresden"]
["Jugendamt, Abt. Kinder-, Jugend- und",{"$nulls":10},"Ansprechpartnerin:"]
["Familienförderung, SG Zuschusswesen",{"$nulls":10},"Frau Murawski"]
["Postfach 12 00 20",{"$nulls":10},"Tel.: 0351-488 4695 / Fax: 0351-488 4643"]
["01001 Dresden ",{"$nulls":10},"E-Mail: smurawski@dresden.de"]
[]
[{"$nulls":11},"Antragsschluss: 31. August \n(des Antragsvorjahres)"]
[]
[{"$nulls":16},"Antrag auf Gewährung einer Zuwendung für das Jahr:"]
[" - Internationale Jugendbegegnung -"]
[]
["Kurzbezeichnung der Maßnahme:\n(z. B. Deutsch-französische Jugendbegegnung in Pau)"]
[]
["Maßnahmedauer (Datum von-bis)"]
[]
["Fördermittelantrag in Höhe von:",{"$nulls":7},{"$f":"Maßnahmeblatt!I39","v":0},{"$nulls":4},"Euro"]
[]
["Erforderliche Unterlagen",{"$nulls":12},"Liegt dem Jugendamt bereits vor.\nDie Unterlagen müssen nicht erneut eingereicht werden, jedoch ist das Datum der aktuellen Fassung hier zu vermerken!"]
[{"$nulls":8},"Dem Antrag beigefügt:\n(wenn ja, ankreuzen)"]
[]
["Satzung/Gesellschaftervertrag"]
["Aktueller Vereins-/Handelsregisterauszug"]
["Vertretungsberechtigung (Formular siehe Folgeblatt)"]
["Nachweis der Gemeinnützigkeit \n(i. d. R. Freistellungsbescheid des Finanzamtes)"]
["Anerkennung nach § 75 SGB VIII (sofern Förderung auf Dauer angelegt oder Träger anderer Gebietskörperschaft angehört)"]
["Ansprechpartner"]
["für Förderung/Finanzen",{"$nulls":9},"für die inhaltliche Arbeit/Durchführung"]
["Name",{"$nulls":3},"Telefon",null,null,"E-Mail-Adresse",null,null,"Name",null,null,"Telefon",null,null,"E-Mail-Adresse"]
[]
[]
["Erklärung "]
[null,"Der  Antragsteller erklärt, dass:"]
[null,"-","die Angaben im gesamten Antrag (Deckblatt einschließlich allen Folgeseiten) vollständig und richtig sind;"]
[null,"-","die Grundsätze einer sparsamen und wirtschaftlichen Haushaltsplanung eingehalten wurden;"]
[null,"-","die Gewähr der zweckentsprechenden und wirtschaftlichen Verwendung der Mittel gegeben ist;"]
[null,"-","die fachlichen Voraussetzungen für die geplante Maßnahme erfüllt werden;"]
[null,"-","gemeinnützige Ziele verfolgt werden;"]
[null,"-","die Gewähr für eine den Zielen des Grundgesetzes förderliche Arbeit gegeben ist."]
["Belehrung"]
[null,"Der  Antragsteller wird belehrt, dass:"]
[null,"-","die Ausgaben - sofern eine  Vorsteuerabzugsberechtigung vorliegt - ohne Umsatzsteuer anzugeben sind;"]
[{"$nulls":15},"Es liegt eine Vorsteuerabzugsberechtigung vor (ankreuzen, sofern zutreffend): "]
[null,"-","Änderungen, die Auswirkungen auf den Antrag haben, unverzüglich und unaufgefordert anzuzeigen sind."]
[]
[]
["Ort, Datum",{"$nulls":6},"rechtsverbindliche Unterschrift(en)",{"$nulls":6},"in Block-/PC-Schrift"]
["Anlagen: Maßnahmeblatt, Maßnahmebeschreibung, Vertretungsberechtigung"]

{"sheet":"Maßnahmeblatt","index":2,"n_rows":51,"n_cols":19,"rows_kept":51,"merged":[[4,5,4,16],[6,0,6,8],[6,9,6,16],[7,0,7,8],[7,9,7,16],[8,0,8,8],[8,9,8,12],[8,13,8,16],[9,0,9,8],[9,9,9,12],[9,13,9,16],[10,0,11,8],[10,9,10,16],[11,9,12,16],[12,0,12,8],[14,0,15,1],[14,2,14,12],[15,2,15,3],[15,4,15,5],[15,6,15,7],[15,8,15,9],[15,10,15,12],[15,13,19,16],[16,0,16,1],[16,2,17,3],[16,4,17,5],[16,6,17,7],[16,8,17,9],[16,10,17,12],[17,0,17,1],[18,0,18,1],[18,2,19,3],[18,4,19,5],[18,6,19,7],[18,8,19,9],[18,10,19,12],[19,0,19,1],[21,0,21,11],[22,0,22,7],[22,8,22,11],[22,12,30,16],[23,0,24,7],[23,8,24,11],[25,0,25,7],[25,8,25,11],[26,0,26,7],[26,8,26,11],[27,0,27,7],[27,8,27,11],[28,0,28,7],[28,8,29,11],[29,0,29,7],[30,0,30,7],[30,8,30,11],[31,0,31,11],[32,0,32,7],[32,8,32,11],[32,12,32,16],[33,0,33,7],[33,8,33,11],[33,12,33,14],[33,15,33,16],[34,0,34,7],[34,8,34,11],[34,15,34,16],[35,0,35,7],[35,8,35,11],[35,15,35,16],[36,8,36,11],[37,0,37,11],[37,15,37,16],[38,0,38,7],[38,8,38,11],[39,0,39,7],[39,8,41,11],[39,15,39,16],[40,1,40,7],[42,0,42,7],[42,8,44,11],[42,12,44,16],[43,1,43,7],[45,0,45,7],[45,8,45,11],[45,12,45,16],[46,0,46,7],[46,8,46,11],[46,12,47,16],[47,8,47,11],[48,0,48,16]]}
["Landeshauptstadt Dresden - Jugendamt",{"$nulls":7},"Förderung von Trägern der freien Jugendhilfe - IB",{"$nulls":5},"Az:",{"$f":"Deckblatt!L3","v":0}]
[]
[{"$nulls":11},"Internationale Jugendbegegnung",{"$f":"Deckblatt!R21","v":0}]
[]
["Kurzbezeichnung der Maßnahme:",{"$nulls":4},{"$f":"Deckblatt!I24","v":0}]
[]
["Partner im Ausland (Land/Anschrift):",{"$nulls":8},"Durchführungsort:"]
[]
[{"$nulls":9},"Dauer der Maßnahme                (Datum von - bis):",{"$nulls":3},"Zähltage (An- und Abreisetag = 1 Tag) Nur eine Zahl eintragen!"]
[]
[{"$nulls":9},"Anschrift der Unterkunft:"]
[]
[]
[]
["Maßnahme",null,"Teilnehmer  (TN) ohne Betreuer / Übernachtung (Ü):",{"$nulls":10},"Platz für Bemerkungen"]
[null,null,"Dresdner TN        ohne Ü",null,"Dresdner TN             mit Ü",null,"Gäste mit Ü",null,"TN gesamt",null,"Alter (von - bis)"]
["entweder",{"$nulls":7},{"$f":"C17+E17+G17","v":0}]
["in Deutschland"]
["oder",{"$nulls":7},{"$f":"E19","v":0}]
["im Ausland"]
["TN: Teilnehmende, Ü: Übernachtung"]
["Ausgaben - in EUR -",{"$nulls":12},"Platz für Bemerkungen"]
["Unterkunft",{"$nulls":17},"Absatz einfügen: Alt + Enter"]
["Verpflegung"]
[]
["Betreuerkosten"]
["Dolmetscherkosten"]
["Fahrtkosten"]
["Programmkosten "]
["(z. B. Eintrittsgelder, Kurtaxe, pädagogisches Arbeitsmaterial)"]
["Versicherungen"]
["weitere Ausgaben (einzeln benennen!)"]
[{"$nulls":12},"Zuschuss Betreuerkosten (sofern welche geplant sind)"]
[{"$nulls":12},"Inland",null,null,"Ausland"]
[{"$nulls":12},"D oh. Ü","D m. Ü","Gäste","m. Ü"]
[{"$nulls":12},{"$f":"IF(((C17*5*N10)*12.5/100)<I26,((C17*5*N10)*12.5/100),I26)","v":{"v":0,"d":"0.00"}},{"$f":"IF(I26<((E17*N10*10)*12.5/100),I26,((E17*N10*10)*12.5/100))","v":{"v":0,"d":"0.00"}},{"$f":"IF(I26<((G17*N10*15)*12.5/100),I26,((G17*N10*15)*12.5/100))","v":{"v":0,"d":"0.00"}},{"$f":"IF(I26<((I19*N10*20)*12.5/100),I26,((I19*N10*20)*12.5/100))","v":{"v":0,"d":"0.00"}}]
[{"$nulls":7},"gesamt",{"$f":"SUM(I23:L31)+SUM(I33:I36)","v":0},{"$nulls":4},"Teilnehmerzuschuss"]
["Finanzierung - in EUR -",{"$nulls":11},{"$f":"C17*5*N10","v":{"v":0,"d":"0.00"}},{"$f":"E17*10*N10","v":{"v":0,"d":"0.00"}},{"$f":"G17*15*N10","v":{"v":0,"d":"0.00"}},{"$f":"I19*20*N10","v":{"v":0,"d":"0.00"}}]
["Fördermittel Jugendamt Dresden (Antrag)",{"$nulls":12},"Zwischenergebnis"]
["weitere öffentliche Mittel (EU/Bund/Land/Kommune)",{"$nulls":11},{"$f":"M36+M38","v":{"v":0,"d":"0.00"}},{"$f":"N36+N38","v":{"v":0,"d":"0.00"}},{"$f":"O36+O38","v":{"v":0,"d":"0.00"}},{"$f":"P36+P38","v":{"v":0,"d":"0.00"}}]
["Welche:"]
[]
["sonstige Finanzierungsquellen",{"$nulls":11},"Zuwendungsfähiger Anteil Jugendamt (max. 60% der Ausgaben):"]
["Art: "]
[]
["Teilnehmerbeiträge",{"$nulls":11},{"$f":"IF((M40+N40+O40+P40)<(I37*60/100),(M40+N40+O40+P40),(I37*60/100))","v":{"v":0,"d":"0.00"}}]
["weitere Eigenmittel",{"$nulls":11},"Die Berechnung ist eine Hilfe für den Antragsteller. Sie basiert auf den Förderkriterien der aktuellen Verwaltungsvorschrift. Änderungen nach Antragstellung sind nicht ausgeschlossen. Zudem stellen die Fördersätze einen Höchstwert dar."]
[{"$nulls":7},"gesamt",{"$f":"SUM(I39:L47)","v":0}]
[]
[]
[{"$nulls":8},{"$f":"IF(I48<>I37,\"Fehler: Ausgaben ungleich Finanzierung\",\"\")","v":""}]

{"sheet":"Maßnahmebeschreibung","index":3,"n_rows":9,"n_cols":20,"rows_kept":9,"merged":[[4,0,4,3],[4,4,4,17],[8,0,37,17]]}
["Landeshauptstadt Dresden - Jugendamt",{"$nulls":5},"Förderung von Trägern der freien Jugendhilfe",{"$nulls":7},"Az:",{"$f":"Deckblatt!L3","v":0}]
[]
[{"$nulls":11},"Internationale Jugendbegegnung",{"$f":"Deckblatt!R21","v":0}]
[]
["Kurzbezeichnung\nder Maßnahme:",{"$nulls":3},{"$f":"Maßnahmeblatt!F5","v":0}]
[]
["Maßnahmebeschreibung, Programmablauf "]
["Programm mit dem ausländischen Partner (ggf. Blatt anfügen)"]
[{"$nulls":19},"Wenn Sie einen Absatz einfügen möchten, drücken Sie zeitgleich die Tasten Alt und Enter."]

{"sheet":"Vertretungsberechtigung","index":4,"n_rows":54,"n_cols":19,"rows_kept":54,"merged":[[1,11,1,16],[4,0,4,16],[9,3,9,16],[12,0,12,16],[13,18,19,21],[14,11,14,13],[14,14,14,16],[15,1,15,10],[15,14,15,16],[16,1,16,10],[16,14,16,16],[17,1,17,10],[17,14,17,16],[18,1,18,10],[18,14,18,16],[19,1,19,10],[19,14,19,16],[20,1,20,10],[20,14,20,16],[23,0,23,16],[24,5,24,16],[27,0,27,16],[28,11,29,13],[28,14,29,16],[30,1,30,10],[30,14,30,16],[31,1,31,10],[31,14,31,16],[32,1,32,10],[32,14,32,16],[35,4,35,16],[36,1,36,16],[38,1,38,11],[38,15,42,15],[39,1,39,11],[43,1,43,16],[46,14,46,16],[48,0,49,15],[50,0,50,13],[52,0,52,3],[52,12,52,16]]}
["Landeshauptstadt Dresden - Jugendamt",{"$nulls":15},"Fördermittelantrag von Trägern der freien Jugendhilfe"]
[{"$nulls":10},"Vertretungsregelung für den Zeitraum"]
[]
["Maßnahmeträger: (Name des Vereins/ der Körperschaft/Personenvereinigung)"]
[]
[]
["Der Maßnahmeträger ist:  (Zutreffendes ankreuzen)"]
[]
["rechtsfähig",{"$nulls":4},"nicht rechtsfähig",null,"und ggf. Teil des rechtsfähigen Trägers:"]
[]
[]
["Vertretungsregelung"]
["Vertretungsberechtiger Vorstand gemäß Satzung/Ordnung/Gesellschaftervertrag:"]
[{"$nulls":12},"Vertretungsberechtigung",{"$nulls":5},"In der Satzung ist festgelegt, ob der Verein durch eine oder mehrere Personen gleichzeitig nach innen und außen vertreten wird. Besteht für ein oder mehrere Vorstandsmitglieder das alleinige Vertretungsrecht, wird nur die Spalte \"allein\" angekreuzt. Kann der Verein nur durch mehrere Vorstandsmitglieder gleichzeitig vertreten werden, muss in der Spalte \"gemeinsam mit\" eingetragen werden, wer mit wem gemeinsam vertritt. Z. B.: \"2.\" oder \"2. oder 3. oder 4.\" (wenn jeweils 2 gemeinsam vertreten)"]
["Nr.","Name, Vorname, Funktion (z. B. Erster Vorsitzender)",{"$nulls":9},"allein\n(ankreuzen)",null,null,"gemeinsam mit \n(Nr. nennen)"]
["1."]
["2."]
["3."]
["4."]
["5."]
["6."]
[]
["Geschäftsführer:"]
["Der vertretungsberechtigte Vorstand hat gemäß Satzung/Ordung/Gesellschaftervertrag folgende Person "]
["zum Geschäftsführer ernannt:"]
[{"$nulls":5},"Name, Vorname"]
["Vollmacht/Unterschriftsberechtigung "]
["Die vertretungsberechtigte(n) Person(en) erteilen Untervollmachten an:"]
[{"$nulls":11},"allein\n(ankreuzen)",null,null,"gemeinsam mit \n(Nr. nennen)"]
["Name, Vorname, Funktion"]
["1."]
["2."]
["3."]
["Die Untervollmacht umfasst folgende Geschäfts- bzw. Verwaltungshandlungen (ankreuzen und ggf. ergänzen):"]
[" - für alle Angebote",{"$nulls":4},"fall zutreffen, ankreuzen"]
[" - für das/die Angebot(e)"]
[]
[]
[null," - Beantragung von Fördermitteln",{"$nulls":13},"(Zutreffendes ankreuzen)"]
[null," - Beantragung von Auszahlungen"]
[null," - Verwendungsnachweisführung"]
[null," - Einlegen von Rechtsmitteln (Widerspruch, Klage)"]
[null," - andere (benennen)"]
[]
[]
["Mitglieder des Stadtjugendring Dresden e. V.:"]
["Die Vollmacht zwischen der o. g. Träger und dem Stadtjugendring Dresden e. V. vom "]
[]
["hinsichtlich der Ermächtigung zu allen Verwaltungshandlungen, die Beantragung und Gewährung von Fördermitteln der Landeshauptstadt Dresden betreffend, behält ihre Gültigkeit: (ankreuzen)"]
[]
["Die aktuelle Vollmacht ist beigefügt: (ankreuzen)"]
[]
[]
["Ort, Datum",{"$nulls":4},"rechtsverbindliche Unterschrift(en)",{"$nulls":6},"in Block-/PC-Schrift"]